bitfinex/quotes_SOLUSD_20230113
["timestamp","ask_amount","ask_price","bid_price","bid_amount"]
[1673624846929,111.2243,16.84,16.821,113.1232]
[1673624846930,44.55,16.839,16.821,113.1232]
[1673624847562,44.55,16.839,16.822,40.0]
[1673624847761,44.55,16.839,16.822,46.85914]
[1673624848408,44.55,16.839,16.822,26.85914]
[1673624849045,44.55,16.839,16.822,20.0]
[1673624849864,111.2243,16.84,16.823,20.0]
[1673624850073,44.54,16.843,16.824,6.85833]
[1673624850295,44.54,16.845,16.83,16.0]
[1673624850507,44.54,16.846,16.83,16.0]
[1673624850704,44.54,16.846,16.831,20.0]
[1673624851672,20.0,16.845,16.831,20.0]
[1673624851856,44.54,16.844,16.831,20.0]
[1673624852076,20.0,16.843,16.831,20.0]
[1673624852294,44.55,16.842,16.826,20.0]
[1673624853757,44.54,16.844,16.826,20.0]
[1673624857780,44.54,16.845,16.826,20.0]
[1673624858180,64.54,16.845,16.826,20.0]
[1673624858719,90.0,16.84,16.826,20.0]
[1673624860922,90.0,16.84,16.83,16.07]
[1673624861115,90.0,16.84,16.831,20.0]
[1673624864181,90.0,16.84,16.821,113.1232]
[1673624864387,20.0,16.838,16.821,113.1232]
[1673624864590,223.56,16.837,16.821,113.1232]
[1673624865215,44.56,16.837,16.821,113.1232]
[1673624865426,20.0,16.836,16.821,113.1232]
[1673624865642,44.56,16.835,16.821,113.1232]
[1673624866266,20.0,16.834,16.821,113.1232]
[1673624866579,44.57,16.833,16.821,113.1232]
[1673624866798,44.56,16.837,16.821,113.1232]
[1673624867015,118.5497,16.838,16.821,113.1232]
[1673624867207,118.5497,16.838,16.822,20.0]
[1673624867417,44.56,16.837,16.822,40.0]
[1673624867639,44.56,16.837,16.822,20.0]
[1673624868071,20.0,16.836,16.822,20.0]
[1673624868381,44.56,16.837,16.822,20.0]
[1673624868996,118.5497,16.838,16.822,20.0]
[1673624869327,118.5497,16.838,16.822,40.0]
[1673624869534,44.55,16.839,16.822,20.0]
[1673624870269,156.159,16.839,16.822,20.0]
[1673624871228,111.609,16.839,16.822,20.0]
[1673624871645,44.56,16.838,16.822,20.0]
[1673624871853,156.159,16.839,16.822,20.0]
[1673624872258,111.609,16.839,16.823,20.0]
[1673624873011,44.56,16.838,16.823,20.0]
[1673624874676,111.609,16.839,16.823,20.0]
[1673624874877,156.159,16.839,16.823,20.0]
[1673624875092,156.159,16.839,16.822,40.0]
[1673624876378,156.159,16.839,16.822,20.0]
[1673624877197,156.159,16.839,16.822,40.0]
[1673624878163,154.159,16.839,16.822,20.0]
[1673624878562,154.159,16.839,16.823,20.0]
[1673624879406,154.159,16.839,16.822,40.0]
[1673624879625,154.159,16.839,16.822,20.0]
[1673624881423,333.159,16.839,16.822,20.0]
[1673624881642,353.11081879,16.839,16.821,20.0]
[1673624881856,19.95181879,16.838,16.814,132.1738]
[1673624882038,20.0,16.835,16.814,132.1738]
[1673624882254,44.57,16.834,16.814,132.1738]
[1673624883096,44.57,16.834,16.815,20.0]
[1673624883303,44.57,16.834,16.816,20.0]
[1673624883728,44.56,16.835,16.82,16.07]
[1673624883942,44.56,16.835,16.821,131.2396]
[1673624884273,20.0,16.834,16.821,20.0]
[1673624884589,44.57,16.833,16.821,20.0]
[1673624884780,44.56,16.835,16.821,138.5063]
[1673624885211,44.56,16.836,16.821,138.5063]
[1673624885735,44.56,16.837,16.821,138.5063]
[1673624885925,44.56,16.838,16.821,138.5063]
[1673624886563,64.51181879,16.838,16.821,138.5063]
[1673624886774,84.51181879,16.838,16.821,138.5063]
[1673624886984,59.46,16.837,16.821,138.5063]
[1673624887206,44.56,16.836,16.821,138.5063]
[1673624888456,104.02,16.837,16.821,138.5063]
[1673624892498,44.56,16.837,16.821,138.5063]
[1673624892811,44.56,16.838,16.821,138.5063]
[1673624894373,154.159,16.839,16.821,138.5063]
[1673624895858,109.609,16.839,16.821,138.5063]
[1673624896800,109.609,16.839,16.822,20.0]
[1673624896992,109.609,16.839,16.821,138.5063]
[1673624897412,154.159,16.839,16.821,138.5063]
[1673624898780,154.159,16.839,16.822,20.0]
[1673624899417,154.159,16.839,16.821,138.5063]
[1673624899652,59.46,16.838,16.821,138.5063]
[1673624899843,104.02,16.837,16.821,138.5063]
[1673624904572,59.46,16.837,16.821,138.5063]
[1673624905728,64.51181879,16.838,16.821,138.5063]
[1673624906049,154.159,16.839,16.821,138.5063]
[1673624906268,109.609,16.839,16.821,138.5063]
[1673624906798,109.609,16.839,16.822,20.0]
[1673624908577,109.609,16.839,16.821,138.5063]
[1673624908762,154.159,16.839,16.821,138.5063]
[1673624910572,333.159,16.839,16.821,138.5063]
[1673624910786,20.0,16.838,16.821,138.5063]
[1673624910996,44.56,16.837,16.821,138.5063]
[1673624911413,223.56,16.837,16.821,138.5063]
[1673624911829,20.0,16.836,16.821,138.5063]
[1673624912031,44.56,16.835,16.821,138.5063]
[1673624912246,64.56,16.836,16.821,138.5063]
[1673624912577,44.56,16.836,16.821,138.5063]
[1673624913620,44.56,16.837,16.821,138.5063]
[1673624914681,179.0,16.836,16.821,138.5063]
[1673624918469,64.51456791,16.838,16.821,138.5063]
[1673624918667,109.609,16.839,16.822,20.0]
[1673624922165,109.609,16.839,16.821,249.8725]
[1673624922354,154.159,16.839,16.821,249.8725]
[1673624922765,333.159,16.839,16.821,249.8725]
[1673624924764,90.0,16.84,16.821,249.8725]
[1673624924963,90.0,16.84,16.822,20.0]
[1673624925173,90.0,16.84,16.823,20.0]
[1673624926360,90.0,16.84,16.83,11.98]
[1673624926555,90.0,16.84,16.831,20.0]
[1673624932132,269.0,16.84,16.821,229.8725]
[1673624932345,223.55,16.839,16.821,229.8725]
[1673624932669,20.0,16.838,16.821,229.8725]
[1673624932876,44.56,16.837,16.821,229.8725]
[1673624933069,90.0,16.84,16.821,259.7525799]
[1673624933280,90.0,16.84,16.83,12.04]
[1673624934643,90.0,16.84,16.831,20.0]
[1673624935268,90.0,16.84,16.832,20.0]
[1673624936126,90.0,16.84,16.831,20.0]
[1673624938870,90.0,16.84,16.83,11.93]
[1673624939049,44.55,16.839,16.83,11.93]
[1673624941176,44.55,16.839,16.824,29.8800799]
[1673624941495,20.0,16.838,16.821,234.7301]
[1673624941707,44.56,16.837,16.821,234.7301]
[1673624942107,44.56,16.838,16.821,234.7301]
[1673624942319,44.56,16.838,16.822,20.0]
[1673624942533,64.56,16.838,16.822,20.0]
[1673624943069,243.56,16.838,16.822,20.0]
[1673624943492,20.0,16.837,16.822,20.0]
[1673624943688,179.0,16.835,16.822,20.0]
[1673624943896,44.57,16.834,16.822,20.0]
[1673624944316,44.56,16.836,16.822,20.0]
[1673624945285,223.56,16.836,16.822,20.0]
[1673624945494,20.0,16.835,16.822,20.0]
[1673624945710,44.57,16.834,16.822,20.0]
[1673624946017,20.0,16.833,16.822,20.0]
[1673624946208,44.57,16.832,16.822,20.0]
[1673624946419,44.57,16.834,16.822,20.0]
[1673624947283,20.0,16.832,16.822,20.0]
[1673624947473,20.0,16.832,16.821,20.0]
[1673624949800,20.0,16.832,16.82,12.03]
[1673624949801,179.0,16.83,16.815,118.6727]
[1673624949988,20.0,16.828,16.812,109.526]
[1673624950199,179.0,16.826,16.812,109.526]
[1673624950431,223.59,16.825,16.812,109.526]
[1673624952634,223.59,16.825,16.81,12.12]
[1673624952851,223.59,16.825,16.811,20.0]
[1673624953371,20.0,16.822,16.81,12.12]
[1673624953565,64.6,16.821,16.81,12.12]
[1673624955043,64.6,16.821,16.804,118.2927]
[1673624955372,20.0,16.82,16.804,118.2927]
[1673624955593,44.61,16.819,16.804,118.2927]
[1673624955776,44.61,16.819,16.81,12.04]
[1673624955985,44.6,16.82,16.81,12.04]
[1673624956196,111.7038,16.825,16.811,20.0]
[1673624956197,64.59,16.824,16.811,20.0]
[1673624957351,20.0,16.823,16.811,20.0]
[1673624957679,64.6,16.822,16.804,118.2927]
[1673624958306,20.0,16.821,16.804,118.2927]
[1673624958524,44.6,16.82,16.804,118.2927]
[1673624959578,44.6,16.821,16.804,118.2927]
[1673624959791,64.59,16.826,16.81,12.04]
[1673624960100,20.0,16.826,16.811,20.0]
[1673624960289,44.59,16.824,16.811,20.0]
[1673624960501,20.0,16.826,16.811,20.0]
[1673624961151,44.59,16.824,16.811,20.0]
[1673624961677,44.59,16.826,16.811,20.0]
[1673624961893,44.59,16.824,16.812,117.0352]
[1673624962093,44.59,16.824,16.811,20.0]
[1673624962302,64.59,16.824,16.811,20.0]
[1673624962623,64.59,16.824,16.804,138.2927]
[1673624962807,20.0,16.823,16.804,118.2927]
[1673624963024,44.6,16.822,16.804,118.2927]
[1673624963233,40.0,16.821,16.804,118.2927]
[1673624963457,44.6,16.82,16.804,118.2927]
[1673624963990,179.0,16.819,16.804,118.2927]
[1673624964513,223.61,16.818,16.804,118.2927]
[1673624967017,223.61,16.818,16.803,108.8582]
[1673624967227,20.0,16.817,16.803,108.8582]
[1673624967448,20.0,16.817,16.794,115.0419]
[1673624967449,223.62,16.816,16.794,115.0419]
[1673624967663,331.9659,16.816,16.795,20.0]
[1673624968289,331.9659,16.816,16.796,20.0]
[1673624968514,331.9659,16.816,16.797,20.0]
[1673624968733,20.0,16.815,16.797,20.0]
[1673624968942,179.0,16.813,16.797,20.0]
[1673624969260,179.0,16.811,16.796,20.0]
[1673624969461,179.0,16.811,16.795,20.0]
[1673624969669,59.46,16.81,16.794,115.0419]
[1673624969871,59.46,16.808,16.794,115.0419]
[1673624970081,44.64,16.807,16.794,115.0419]
[1673624970723,104.1,16.808,16.794,115.0419]
[1673624971124,199.0,16.813,16.794,115.0419]
[1673624971125,223.63,16.811,16.795,20.0]
[1673624971554,223.63,16.811,16.794,115.0419]
[1673624972182,59.46,16.808,16.794,115.0419]
[1673624972388,44.64,16.807,16.794,115.0419]
[1673624972825,59.46,16.808,16.794,115.0419]
[1673624973039,44.64,16.807,16.794,115.0419]
[1673624973230,104.1,16.807,16.794,115.0419]
[1673624973563,44.63,16.809,16.795,20.0]
[1673624973780,179.0,16.81,16.794,115.0419]
[1673624973980,223.63,16.809,16.794,115.0419]
[1673624974195,44.63,16.809,16.794,115.0419]
[1673624974385,44.63,16.811,16.794,115.0419]
[1673624974805,179.0,16.81,16.794,115.0419]
[1673624975035,223.63,16.809,16.794,115.0419]
[1673624978172,44.63,16.809,16.795,20.0]
[1673624978377,117.219,16.812,16.795,20.0]
[1673624978590,64.63,16.811,16.795,20.0]
[1673624979240,44.63,16.811,16.795,20.0]
[1673624979448,179.0,16.815,16.8,16.04]
[1673624979449,44.62,16.814,16.8,16.04]
[1673624979760,44.62,16.814,16.801,20.0]
[1673624979971,44.62,16.815,16.801,20.0]
[1673624980617,223.6,16.82,16.801,20.0]
[1673624980806,223.6,16.82,16.802,109.3441]
[1673624981016,223.6,16.82,16.803,20.0]
[1673624981226,223.6,16.82,16.803,133.0491]
[1673624981447,44.6,16.82,16.803,133.0491]
[1673624981770,44.6,16.822,16.81,16.03]
[1673624981980,44.6,16.823,16.811,20.0]
[1673624982291,188.65441875,16.827,16.811,20.0]
[1673624982292,169.08341777,16.827,16.811,20.0]
[1673624982484,169.08341777,16.827,16.812,118.0431]
[1673624983029,56.00831777,16.827,16.812,118.0431]
[1673624983219,44.58,16.83,16.812,118.0431]
[1673624983556,44.58,16.83,16.812,237.4416]
[1673624984068,44.58,16.83,16.813,20.0]
[1673624984702,223.58,16.828,16.812,237.4416]
[1673624985342,423.59114722,16.829,16.812,237.4416]
[1673624985955,423.59114722,16.829,16.813,20.0]
[1673624986165,179.0,16.828,16.812,237.4416]
[1673624986376,179.0,16.826,16.812,237.4416]
[1673624986597,44.58,16.828,16.812,237.4416]
[1673624987423,223.58,16.828,16.812,237.4416]
[1673624987751,44.58,16.828,16.812,237.4416]
[1673624988172,179.0,16.827,16.812,237.4416]
[1673624988587,179.0,16.825,16.812,118.0431]
[1673624988916,20.0,16.824,16.812,118.0431]
[1673624989095,59.46,16.823,16.812,118.0431]
[1673624989520,59.46,16.823,16.811,20.0]
[1673624989738,79.46,16.822,16.811,20.0]
[1673624991327,258.46,16.822,16.811,20.0]
[1673624991536,223.6,16.821,16.811,20.0]
[1673624991739,223.6,16.821,16.805,108.075]
[1673624991951,20.0,16.82,16.805,108.075]
[1673624992273,44.61,16.819,16.805,108.075]
[1673624992675,44.6,16.82,16.805,108.075]
[1673624992887,20.0,16.819,16.805,108.075]
[1673624993100,223.61,16.818,16.805,108.075]
[1673624993312,44.61,16.818,16.805,108.075]
[1673624993635,44.6,16.82,16.805,108.075]
[1673624994376,223.6,16.82,16.805,108.075]
[1673624995207,20.0,16.819,16.805,108.075]
[1673624995640,223.61,16.818,16.805,108.075]
[1673624995855,20.0,16.817,16.805,108.075]
[1673624996251,223.61,16.818,16.805,108.075]
[1673624997006,20.0,16.821,16.805,108.075]
[1673624997007,179.0,16.819,16.805,108.075]
[1673624997853,20.0,16.818,16.805,108.075]
[1673624998033,20.0,16.818,16.803,113.0491]
[1673624998251,20.0,16.821,16.803,113.0491]
[1673624998252,223.61,16.817,16.803,113.0491]
[1673624998457,179.0,16.817,16.803,113.0491]
[1673624999213,179.0,16.819,16.803,113.0491]
[1673624999405,179.0,16.817,16.803,113.0491]
[1673625000467,179.0,16.819,16.803,113.0491]
[1673625000895,59.46,16.822,16.804,20.0]
[1673625001090,20.0,16.821,16.804,20.0]
[1673625001299,64.6,16.821,16.804,20.0]
[1673625001504,20.0,16.821,16.804,20.0]
[1673625001925,59.46,16.822,16.804,20.0]
[1673625002155,19.57100098,16.826,16.81,16.09]
[1673625002351,15.95,16.82,16.797,34.67143188]
[1673625002678,360.45402122,16.818,16.78,16.11]
[1673625002871,3.05402122,16.815,16.78,16.11]
[1673625003204,179.0,16.806,16.78,16.11]
[1673625003396,3.47055597,16.804,16.781,6.8759]
[1673625003607,44.64,16.805,16.781,6.8759]
[1673625003811,44.64,16.805,16.79,16.02]
[1673625004021,179.0,16.811,16.79,80.38]
[1673625004244,59.46,16.81,16.791,118.6283]
[1673625004440,104.09,16.81,16.791,118.6283]
[1673625004662,59.46,16.81,16.791,118.6283]
[1673625004901,258.46,16.81,16.791,118.6283]
[1673625005279,238.46,16.808,16.791,118.6283]
[1673625005720,59.46,16.806,16.792,20.0]
[1673625006337,20.0,16.805,16.792,20.0]
[1673625007416,179.0,16.803,16.791,20.0]
[1673625007619,179.0,16.801,16.791,20.0]
[1673625008246,20.0,16.8,16.785,115.704]
[1673625008457,223.66,16.799,16.785,115.704]
[1673625008680,20.0,16.798,16.785,115.704]
[1673625008864,44.67,16.797,16.785,115.704]
[1673625009907,44.67,16.797,16.771,20.0]
[1673625009908,402.07,16.797,16.77,16.02]
[1673625010140,556.4,16.796,16.77,16.02]
[1673625010452,59.46,16.794,16.77,80.49]
[1673625010671,59.46,16.792,16.771,20.0]
[1673625010859,64.68,16.791,16.771,20.0]
[1673625011208,536.4,16.796,16.771,20.0]
[1673625011209,44.67,16.796,16.78,16.03]
[1673625011515,134.843,16.8,16.78,16.03]
[1673625011516,64.66,16.798,16.78,16.03]
[1673625011717,64.66,16.798,16.781,20.0]
[1673625012354,59.46,16.797,16.774,20.0]
[1673625012547,59.46,16.795,16.772,20.0]
[1673625012765,59.46,16.793,16.771,20.0]
[1673625012969,104.14,16.792,16.771,20.0]
[1673625013197,20.0,16.791,16.771,20.0]
[1673625013409,44.68,16.79,16.77,80.46]
[1673625013618,44.68,16.79,16.77,16.1]
[1673625013619,20.0,16.789,16.77,16.1]
[1673625013836,44.69,16.788,16.77,16.1]
[1673625014229,44.69,16.789,16.77,16.1]
[1673625014554,44.68,16.79,16.77,16.1]
[1673625015916,44.68,16.79,16.77,80.38]
[1673625016867,44.68,16.79,16.771,20.0]
[1673625017713,20.0,16.789,16.771,20.0]
[1673625017922,44.69,16.788,16.771,20.0]
[1673625020652,44.69,16.788,16.771,128.6123]
[1673625021078,20.0,16.787,16.771,20.0]
[1673625021274,44.7,16.786,16.771,20.0]
[1673625022131,64.69,16.787,16.771,20.0]
[1673625022764,243.69,16.787,16.768,20.0]
[1673625023588,64.69,16.787,16.768,20.0]
[1673625024652,243.69,16.787,16.768,20.0]
[1673625025063,64.69,16.787,16.768,20.0]
[1673625026107,44.69,16.787,16.768,20.0]
[1673625027186,44.69,16.787,16.77,16.09]
[1673625027584,44.69,16.787,16.771,20.0]
[1673625028552,44.69,16.788,16.771,20.0]
[1673625028761,44.68,16.79,16.771,135.5722]
[1673625029592,44.68,16.79,16.772,20.0]
[1673625029809,44.68,16.79,16.773,20.0]
[1673625030435,44.67,16.795,16.78,16.09]
[1673625030635,44.67,16.796,16.781,20.0]
[1673625031190,223.67,16.796,16.781,20.0]
[1673625031388,44.67,16.796,16.781,20.0]
[1673625031581,243.66,16.798,16.781,20.0]
[1673625032436,59.46,16.795,16.781,20.0]
[1673625032758,59.46,16.792,16.781,20.0]
[1673625032964,179.0,16.796,16.781,20.0]
[1673625033175,44.66,16.798,16.781,20.0]
[1673625033391,44.66,16.798,16.781,128.2242]
[1673625035798,223.66,16.798,16.781,128.2242]
[1673625036011,281.50135087,16.798,16.781,20.0]
[1673625036449,20.0,16.797,16.781,20.0]
[1673625036640,179.0,16.795,16.781,20.0]
[1673625036848,179.0,16.793,16.776,113.7616]
[1673625037071,20.0,16.791,16.776,113.7616]
[1673625037293,223.68,16.79,16.776,113.7616]
[1673625040321,20.0,16.789,16.776,113.7616]
[1673625040639,44.69,16.788,16.776,113.7616]
[1673625040961,44.68,16.79,16.776,113.7616]
[1673625041706,223.68,16.79,16.776,113.7616]
[1673625044415,223.68,16.79,16.77,121.19]
[1673625044625,223.68,16.79,16.771,20.0]
[1673625045049,20.0,16.789,16.771,20.0]
[1673625045260,179.0,16.787,16.771,20.0]
[1673625045685,179.0,16.785,16.771,20.0]
[1673625046117,238.46,16.781,16.771,20.0]
[1673625046326,59.46,16.781,16.768,20.0]
[1673625047261,59.46,16.784,16.768,40.0]
[1673625047584,59.46,16.784,16.77,24.21]
[1673625047802,59.46,16.784,16.771,20.0]
[1673625048304,44.69,16.788,16.771,20.0]
[1673625049476,179.0,16.787,16.771,20.0]
[1673625049677,223.69,16.786,16.771,20.0]
[1673625051153,179.0,16.788,16.771,20.0]
[1673625051482,44.69,16.787,16.771,20.0]
[1673625052077,44.69,16.789,16.771,20.0]
[1673625052291,223.68,16.79,16.773,20.0]
[1673625052511,223.68,16.79,16.772,118.652]
[1673625052725,223.68,16.79,16.773,20.0]
[1673625052940,267.60329215,16.79,16.773,20.0]
[1673625053144,20.0,16.789,16.773,20.0]
[1673625053342,179.0,16.787,16.773,20.0]
[1673625053547,44.69,16.786,16.773,20.0]
[1673625054394,44.69,16.788,16.773,20.0]
[1673625054838,44.69,16.789,16.773,20.0]
[1673625055244,20.0,16.788,16.773,20.0]
[1673625055457,223.69,16.787,16.773,20.0]
[1673625056603,179.0,16.788,16.773,20.0]
[1673625056812,44.69,16.787,16.773,20.0]
[1673625057225,44.68,16.79,16.773,20.0]
[1673625057882,20.0,16.789,16.773,20.0]
[1673625058088,223.69,16.788,16.773,20.0]
[1673625058300,20.0,16.787,16.773,20.0]
[1673625058494,44.69,16.786,16.773,20.0]
[1673625059119,20.0,16.785,16.77,16.15]
[1673625059448,179.0,16.783,16.761,20.0]
[1673625059650,59.46,16.781,16.761,20.0]
[1673625059861,44.71,16.78,16.763,115.6217]
[1673625060062,44.71,16.78,16.764,20.0]
[1673625060501,44.71,16.78,16.763,115.6217]
[1673625060711,223.71,16.78,16.763,115.6217]
[1673625061266,223.71,16.78,16.764,20.0]
[1673625061671,223.71,16.78,16.763,115.6217]
[1673625062060,223.71,16.78,16.764,20.0]
[1673625062297,223.71,16.78,16.763,115.6217]
[1673625063244,20.0,16.779,16.763,115.6217]
[1673625063447,44.72,16.778,16.763,115.6217]
[1673625063863,223.72,16.778,16.763,115.6217]
[1673625064074,20.0,16.777,16.763,115.6217]
[1673625064497,179.0,16.775,16.763,115.6217]
[1673625064710,44.73,16.774,16.76,16.16]
[1673625064927,44.73,16.774,16.761,20.0]
[1673625065107,223.73,16.774,16.761,20.0]
[1673625065635,223.73,16.774,16.755,119.3605]
[1673625065861,20.0,16.773,16.755,119.3605]
[1673625066067,223.73,16.772,16.755,119.3605]
[1673625066271,20.0,16.771,16.755,119.3605]
[1673625066483,223.74,16.77,16.755,119.3605]
[1673625068182,44.74,16.77,16.755,119.3605]
[1673625068372,20.0,16.769,16.755,119.3605]
[1673625068582,223.74,16.768,16.755,119.3605]
[1673625068917,179.0,16.768,16.755,119.3605]
[1673625069313,334.941,16.77,16.755,119.3605]
[1673625069733,59.46,16.782,16.76,80.65]
[1673625069964,111.201,16.784,16.761,20.0]
[1673625070279,223.7,16.783,16.762,20.0]
[1673625070683,223.7,16.783,16.764,20.0]
[1673625071001,283.16,16.783,16.764,20.0]
[1673625071214,223.7,16.783,16.765,29.8800799]
[1673625071860,238.46,16.781,16.765,29.8800799]
[1673625072047,223.71,16.78,16.763,135.6761]
[1673625072258,223.71,16.78,16.764,29.8800799]
[1673625072785,44.71,16.78,16.764,29.8800799]
[1673625073005,59.46,16.781,16.764,29.8800799]
[1673625073434,223.71,16.78,16.764,29.8800799]
[1673625073746,223.71,16.78,16.763,135.6761]
[1673625074674,20.0,16.779,16.763,135.6761]
[1673625074892,44.72,16.778,16.763,135.6761]
[1673625075101,44.72,16.778,16.763,115.6761]
[1673625075321,223.72,16.778,16.763,115.6761]
[1673625076277,44.72,16.778,16.763,115.6761]
[1673625076455,179.0,16.778,16.763,115.6761]
[1673625076666,44.72,16.777,16.763,115.6761]
[1673625076872,179.0,16.778,16.763,115.6761]
[1673625077734,223.72,16.777,16.763,115.6761]
[1673625077925,20.0,16.776,16.763,115.6761]
[1673625078475,179.0,16.777,16.763,115.6761]
[1673625078685,223.71,16.779,16.763,115.6761]
[1673625078907,44.71,16.779,16.763,115.6761]
[1673625079080,64.71,16.78,16.763,115.6761]
[1673625079295,44.71,16.78,16.763,115.6761]
[1673625079733,258.46,16.781,16.763,115.6761]
[1673625080157,223.71,16.78,16.763,115.6761]
[1673625080680,179.0,16.78,16.763,115.6761]
[1673625081300,223.71,16.78,16.763,115.6761]
[1673625082147,44.71,16.78,16.763,145.5561799]
[1673625082359,44.71,16.782,16.763,145.5561799]
[1673625082574,20.0,16.781,16.763,115.6761]
[1673625082786,44.71,16.78,16.763,115.6761]
[1673625082998,44.71,16.78,16.764,20.0]
[1673625083212,20.0,16.781,16.764,20.0]
[1673625083416,20.0,16.782,16.764,20.0]
[1673625083634,44.71,16.781,16.764,49.8800799]
[1673625084059,44.71,16.781,16.77,16.05]
[1673625084371,44.71,16.781,16.771,20.0]
[1673625084583,44.7,16.785,16.771,20.0]
[1673625084775,44.69,16.786,16.771,20.0]
[1673625084985,44.69,16.788,16.771,40.0]
[1673625085199,64.68,16.791,16.771,157.371]
[1673625085407,64.68,16.791,16.771,137.371]
[1673625085623,179.0,16.79,16.771,137.371]
[1673625085946,20.0,16.789,16.771,137.371]
[1673625086877,20.0,16.79,16.771,137.371]
[1673625088460,20.0,16.791,16.771,137.371]
[1673625091104,179.0,16.79,16.771,137.371]
[1673625091305,20.0,16.789,16.771,137.371]
[1673625093210,179.0,16.787,16.771,137.371]
[1673625093613,20.0,16.786,16.771,137.371]
[1673625094031,179.0,16.785,16.771,137.371]
[1673625094878,20.0,16.784,16.771,137.371]
[1673625095307,179.0,16.785,16.771,137.371]
[1673625096040,179.0,16.785,16.771,20.0]
[1673625096259,20.0,16.784,16.771,20.0]
[1673625096661,179.0,16.785,16.771,20.0]
[1673625097600,20.0,16.786,16.771,20.0]
[1673625098228,243.69,16.786,16.771,20.0]
[1673625101388,223.69,16.786,16.771,20.0]
[1673625101595,44.69,16.786,16.771,20.0]
[1673625101805,44.69,16.788,16.771,20.0]
[1673625102019,199.0,16.789,16.771,20.0]
[1673625102230,179.0,16.787,16.771,20.0]
[1673625102435,44.69,16.788,16.771,20.0]
[1673625102871,243.69,16.789,16.771,20.0]
[1673625105072,223.69,16.789,16.771,20.0]
[1673625105294,44.69,16.789,16.771,20.0]
[1673625105507,223.68,16.791,16.771,49.8800799]
[1673625106776,20.0,16.79,16.771,20.0]
[1673625106971,44.69,16.789,16.771,20.0]
[1673625107187,20.0,16.788,16.771,20.0]
[1673625107501,44.69,16.787,16.771,20.0]
[1673625109908,44.69,16.787,16.771,49.8800799]